fUSD/lending_fUSD_20251224
["ID","MTS","AMOUNT","RATE_DAILY","PERIOD"]
[399635670,1766577040593,-714.61817831,0.00015349,2]
[399635671,1766577040603,-620.0,0.00015349,2]
[399635672,1766577040613,-267.46074303,0.00015349,2]
[399635673,1766577040623,-277.35679052,0.00015349,2]
[399635674,1766577040633,-500.0,0.00015349,2]
[399635675,1766577040643,-500.0,0.00015349,2]
[399635676,1766577040653,-500.0,0.00015349,2]
[399635677,1766577040662,-250.0,0.00015349,2]
[399635678,1766577040672,-500.0,0.00015349,2]
[399635679,1766577040682,-500.0,0.00015349,2]
[399635680,1766577040692,-500.0,0.00015349,2]
[399635681,1766577040702,-250.0,0.00015349,2]
[399635682,1766577040712,-500.0,0.00015349,2]
[399635683,1766577041059,-500.0,0.00015349,2]
[399635684,1766577041075,-250.0,0.00015349,2]
[399635685,1766577041084,-500.0,0.00015349,2]
[399635687,1766577041094,-500.0,0.00015349,2]
[399635688,1766577041103,-250.0,0.00015349,2]
[399635689,1766577041113,-500.0,0.00015349,2]
[399635690,1766577041123,-500.0,0.00015349,2]
[399635691,1766577041132,-500.0,0.00015349,2]
[399635692,1766577041145,-250.0,0.00015349,2]
[399635693,1766577041156,-500.0,0.00015349,2]
[399635694,1766577041166,-500.0,0.00015349,2]
[399635695,1766577041176,-500.0,0.00015349,2]
[399635696,1766577041186,-500.0,0.00015349,2]
[399635697,1766577041195,-500.0,0.00015349,2]
[399635698,1766577041205,-250.0,0.00015349,2]
[399635699,1766577041215,-500.0,0.00015349,2]
[399635700,1766577041225,-500.0,0.00015349,2]
[399635701,1766577041234,-500.0,0.00015349,2]
[399635702,1766577041244,-261.58626416,0.00015349,2]
[399635703,1766577041254,-500.0,0.00015349,2]
[399635704,1766577041264,-500.0,0.00015349,2]
[399635705,1766577041275,-500.0,0.00015349,2]
[399635706,1766577041285,-259.02685211,0.00015349,2]
[399635707,1766577041295,-500.0,0.00015349,2]
[399635708,1766577041305,-500.0,0.00015349,2]
[399635709,1766577041315,-500.0,0.00015349,2]
[399635710,1766577041325,-500.0,0.00015349,2]
[399635711,1766577041335,-500.0,0.00015349,2]
[399635712,1766577041346,-543.0,0.00015349,2]
[399635713,1766577041356,-500.0,0.00015349,2]
[399635714,1766577041367,-500.0,0.00015349,2]
[399635715,1766577041376,-500.0,0.00015349,2]
[399635716,1766577041386,-500.0,0.00015349,2]
[399635717,1766577041395,-500.0,0.00015349,2]
[399635718,1766577041405,-500.0,0.00015349,2]
[399635719,1766577041415,-500.0,0.00015349,2]
[399635720,1766577041425,-500.0,0.00015349,2]
[399635721,1766577041436,-500.0,0.00015349,2]
[399635722,1766577041447,-261.6071653,0.00015349,2]
[399635723,1766577041457,-322.6107,0.00015349,2]
[399635724,1766577041467,-2159.39,0.00015393,2]
[399635725,1766577041481,-151.0,0.00015399,2]
[399635726,1766577041491,-150.0,0.00015401,2]
[399635727,1766577041501,-516.01929042,0.00015405,2]
[399635728,1766577041511,-500.0,0.00015405,2]
[399635729,1766577041532,-500.0,0.00015406,2]
[399635730,1766577041548,-500.0,0.00015406,2]
[399635731,1766577041558,-500.0,0.00015406,2]
[399635732,1766577041569,-500.0,0.00015406,2]
[399635733,1766577041580,-500.0,0.00015406,2]
[399635734,1766577041591,-500.0,0.00015406,2]
[399635735,1766577041601,-500.0,0.00015406,2]
[399635736,1766577041611,-500.0,0.00015406,2]
[399635737,1766577041621,-500.0,0.00015406,2]
[399635738,1766577041631,-582.59898014,0.00015406,2]
[399635739,1766577041641,-500.0,0.00015406,2]
[399635740,1766577041651,-500.0,0.00015406,2]
[399635741,1766577041661,-512.7999143,0.00015406,2]
[399635742,1766577041671,-500.0,0.00015406,2]
[399635743,1766577041681,-500.0,0.00015406,2]
[399635744,1766577041692,-526.00597189,0.00015406,2]
[399635745,1766577041702,-500.0,0.00015406,2]
[399635746,1766577041712,-500.0,0.00015406,2]
[399635747,1766577041722,-500.0,0.00015406,2]
[399635748,1766577041732,-500.0,0.00015406,2]
[399635749,1766577041743,-500.0,0.00015406,2]
[399635750,1766577041753,-151.0,0.00015435,2]
[399635751,1766577041762,-420.0,0.00015443,2]
[399635752,1766577041774,-420.0,0.00015443,2]
[399635753,1766577041784,-151.0,0.00015473,2]
[399635754,1766577041794,-150.0,0.00015476,2]
[399635755,1766577041805,-18587.16,0.00015482,2]
[399635756,1766577041815,-600.0,0.00015507,2]
[399635757,1766577041825,-5000.0,0.00015507,4]
[399635758,1766577041835,-300.0,0.00015507,2]
[399635759,1766577041845,-1680.0,0.00015507,2]
[399635760,1766577041854,-193.0,0.00015508,2]
[399635761,1766577041864,-195.0,0.00015508,2]
[399635762,1766577041874,-300.0,0.00015508,2]
[399635763,1766577041883,-250.0,0.00015508,2]
[399635764,1766577041893,-150.0,0.00015514,2]
[399635765,1766577041902,-150.0,0.0001553,2]
[399635766,1766577041912,-150.0,0.0001553,2]
[399635767,1766577041923,-150.0,0.0001553,2]
[399635768,1766577041933,-150.0,0.0001553,2]
[399635769,1766577041944,-150.0,0.00015571,2]
[399635770,1766577041954,-390.50248368,0.00015599,2]
[399635771,1766577041964,-150.0,0.00015618,2]
[399635772,1766577041975,-2500.0,0.00015618,2]
[399635773,1766577041985,-195.0,0.00015618,2]
[399635774,1766577041996,-600.0,0.00015618,2]
[399635775,1766577042006,-300.0,0.00015618,2]
[399635776,1766577042016,-24029.90221517,0.00015623,2]
[399635777,1766577042026,-150.0,0.00015627,2]
[399635778,1766577042037,-500.0,0.00015654,2]
[399635779,1766577042047,-150.0,0.00015665,2]
[399635780,1766577042057,-166.67,0.00015666,2]
[399635781,1766577042067,-2159.39,0.00015667,2]
[399635782,1766577042078,-500.0,0.0001572,2]
[399635783,1766577042088,-1000.0,0.00015721,2]
[399635784,1766577042098,-535.67909762,0.00015721,2]
[399635785,1766577042108,-1000.0,0.00015721,2]
[399635786,1766577042118,-1000.0,0.00015721,2]
[399635787,1766577042128,-1000.0,0.00015721,2]
[399635788,1766577042139,-1000.0,0.00015721,2]
[399635789,1766577042149,-1000.0,0.00015721,2]
[399635790,1766577042159,-537.6086795,0.00015721,2]
[399635791,1766577042170,-501.75154146,0.00015721,2]
[399635792,1766577042180,-1000.0,0.00015721,2]
[399635793,1766577042190,-1000.0,0.00015721,2]
[399635794,1766577042199,-1000.0,0.00015721,2]
[399635795,1766577042210,-1000.0,0.00015721,2]
[399635796,1766577042219,-1000.0,0.00015721,2]
[399635797,1766577042229,-1000.0,0.00015721,2]
[399635798,1766577042240,-937.29781211,0.00015721,2]
[399635799,1766577042251,-1000.0,0.00015721,2]
[399635800,1766577042261,-1000.0,0.00015721,2]
[399635801,1766577042271,-1001.56481773,0.00015721,2]
[399635802,1766577042281,-1000.0,0.00015721,2]
[399635803,1766577042291,-366.77928753,0.00015721,2]
[399635804,1766577042301,-1000.0,0.00015721,2]
[399635805,1766577042311,-631.6683013,0.00015721,2]
[399635806,1766577042322,-1000.0,0.00015721,2]
[399635807,1766577042332,-1000.0,0.00015721,2]
[399635808,1766577042343,-1000.0,0.00015721,2]
[399635809,1766577042354,-1000.0,0.00015721,2]
[399635810,1766577042364,-1144.90304648,0.00015721,2]
[399635811,1766577042375,-1000.0,0.00015721,2]
[399635812,1766577042385,-304.45148549,0.00015721,2]
[399635813,1766577042395,-1092.09895844,0.00015726,7]
[399635814,1766577042406,-150.0,0.00015741,2]
[399635815,1766577042416,-150.0,0.00015773,2]
[399635816,1766577042427,-150.0,0.00015773,2]
[399635817,1766577042438,-150.0,0.00015773,2]
[399635818,1766577042448,-150.0,0.00015773,2]
[399635819,1766577042459,-200.0,0.00015804,2]
[399635820,1766577042470,-150.0,0.00015854,2]
[399635821,1766577042484,-150.0,0.00015854,2]
[399635822,1766577042495,-150.0,0.00015854,2]
[399635823,1766577042506,-150.0,0.00015854,2]
[399635824,1766577042518,-150.0,0.00015854,2]
[399635825,1766577042529,-150.0,0.00015854,2]
[399635826,1766577042540,-2159.39,0.00015941,2]
[399635827,1766577042550,-24029.90221517,0.00015942,2]
[399635828,1766577042561,-150.0,0.00015967,2]
[399635829,1766577042571,-150.0,0.00016016,2]
[399635830,1766577042581,-150.0,0.00016016,2]
[399635831,1766577042591,-150.0,0.00016016,2]
[399635832,1766577042602,-150.0,0.00016016,2]
[399635833,1766577042612,-390.50248368,0.00016032,2]
[399635834,1766577042622,-150.0,0.00016043,2]
[399635835,1766577042633,-150.0,0.0001608,2]
[399635836,1766577042643,-150.0,0.00016137,2]
[399635837,1766577042653,-2991.0,0.00016142,2]
[399635838,1766577042663,-500.0,0.00016161,2]
[399635839,1766577042673,-500.0,0.00016161,2]
[399635840,1766577042683,-500.0,0.00016161,2]
[399635841,1766577042693,-500.0,0.00016161,2]
[399635842,1766577042711,-500.0,0.00016161,2]
[399635843,1766577042721,-500.0,0.00016161,2]
[399635844,1766577042731,-500.0,0.00016161,2]
[399635845,1766577042741,-521.52385313,0.00016161,2]
[399635847,1766577042751,-500.0,0.00016161,2]
[399635848,1766577042764,-530.21490798,0.00016161,2]
[399635849,1766577042774,-500.0,0.00016161,2]
[399635851,1766577042785,-500.0,0.00016161,2]
[399635853,1766577042794,-504.00842386,0.00016161,2]
[399635855,1766577042804,-500.0,0.00016161,2]
[399635857,1766577042814,-500.0,0.00016161,2]
[399635859,1766577042825,-500.0,0.00016161,2]
[399635861,1766577042841,-500.0,0.00016161,2]
[399635863,1766577042854,-2991.0,0.00016193,2]
[399635864,1766577042864,-150.0,0.00016194,2]
[399635865,1766577042874,-2159.39,0.00016215,2]
[399635866,1766577042884,-5888.0,0.00016218,2]
[399635867,1766577042894,-150.0,0.00016231,2]
[399635868,1766577042904,-150.0,0.00016258,2]
[399635869,1766577042914,-150.0,0.00016258,2]
[399635870,1766577042924,-150.0,0.00016258,2]
[399635871,1766577042935,-150.0,0.00016258,2]
[399635872,1766577042945,-24029.90221517,0.00016262,2]
[399635873,1766577042966,-1502.21103807,0.00016268,2]
[399635874,1766577042976,-1500.0,0.00016268,2]
[399635875,1766577042987,-659.61432389,0.00016268,2]
[399635876,1766577042998,-1152.24771279,0.00016268,2]
[399635877,1766577043009,-1466.73216774,0.00016268,2]
[399635878,1766577043019,-1500.0,0.00016268,2]
[399635879,1766577043029,-1500.0,0.00016268,2]
[399635880,1766577043040,-1500.0,0.00016268,2]
[399635881,1766577043050,-890.7850892,0.00016268,2]
[399635882,1766577043060,-1500.0,0.00016268,2]
[399635883,1766577043070,-1505.01239591,0.00016268,2]
[399635884,1766577043081,-1459.78950383,0.00016268,2]
[399635885,1766577043091,-1500.0,0.00016268,2]
[399635886,1766577043101,-1500.0,0.00016268,2]
[399635887,1766577043111,-1500.0,0.00016268,2]
[399635888,1766577043122,-1500.0,0.00016268,2]
[399635889,1766577043131,-1500.0,0.00016268,2]
[399635890,1766577043141,-1500.0,0.00016268,2]
[399635891,1766577043151,-500.0,0.00016276,2]
[399635892,1766577043162,-5888.0,0.00016299,2]
[399635893,1766577043172,-150.0,0.00016307,2]
[399635894,1766577043182,-220.74,0.00016388,2]
[399635895,1766577043192,-150.0,0.0001642,2]
[399635896,1766577043202,-150.0,0.0001642,2]
[399635898,1766577043212,-150.0,0.0001642,2]
[399635901,1766577043223,-150.0,0.0001642,2]
[399635903,1766577043233,-150.0,0.0001642,2]
[399635905,1766577043243,-150.0,0.0001642,2]
[399635907,1766577043254,-151.0,0.00016435,2]
[399635909,1766577043264,-500.0,0.00016437,2]
[399635911,1766577043273,-433.0,0.00016437,2]
[399635913,1766577043284,-500.0,0.00016438,2]
[399635915,1766577043294,-1365.60717564,0.00016438,2]
[399635917,1766577043304,-1365.60717564,0.00016438,2]
[399635919,1766577043314,-1365.60717564,0.00016438,2]
[399635921,1766577043323,-1365.60717564,0.00016438,2]
[399635923,1766577043333,-1365.60717564,0.00016438,2]
[399635925,1766577043343,-1365.60717564,0.00016438,2]
[399635927,1766577043353,-1365.60717564,0.00016438,2]
[399635929,1766577043363,-1365.60717564,0.00016438,2]
[399635931,1766577043373,-1365.60717564,0.00016438,2]
[399635933,1766577043383,-1365.60717564,0.00016438,2]
[399635935,1766577043394,-1365.60717564,0.00016438,2]
[399635937,1766577043404,-1365.60717564,0.00016438,2]
[399635939,1766577043414,-1365.60717564,0.00016438,2]
[399635942,1766577043425,-1365.60717564,0.00016438,2]
[399635944,1766577043435,-1365.60717564,0.00016438,2]
[399635946,1766577043445,-1365.60717564,0.00016438,2]
[399635948,1766577043455,-1365.60717564,0.00016438,2]
[399635950,1766577043465,-1365.60717564,0.00016438,2]
[399635953,1766577043479,-1365.60717564,0.00016438,2]
[399635955,1766577043489,-1365.60717564,0.00016438,2]
[399635957,1766577043499,-1365.60717564,0.00016438,2]
[399635959,1766577043509,-1365.60717564,0.00016438,2]
[399635961,1766577043519,-1365.60717564,0.00016438,2]
[399635963,1766577043529,-1365.60717564,0.00016438,2]
[399635965,1766577043539,-1365.60717564,0.00016438,2]
[399635967,1766577043550,-1365.60717564,0.00016438,2]
[399635969,1766577043560,-1365.60717564,0.00016438,2]
[399635971,1766577043570,-1365.60717564,0.00016438,2]
[399635973,1766577043579,-1365.60717564,0.00016438,2]
[399635975,1766577043590,-1365.60717564,0.00016438,2]
[399635977,1766577043600,-1365.60717564,0.00016438,2]
[399635979,1766577043610,-1365.60717564,0.00016438,2]
[399635981,1766577043620,-1365.60717564,0.00016438,2]
[399635983,1766577043630,-1365.60717564,0.00016438,2]
[399635985,1766577043640,-1365.60717564,0.00016438,2]
[399635987,1766577043649,-1365.60717564,0.00016438,2]
[399635989,1766577043659,-1365.60717564,0.00016438,2]
[399635991,1766577043671,-1365.60717564,0.00016438,2]
[399635993,1766577043681,-1365.60717564,0.00016438,2]
[399635995,1766577043691,-1365.60717564,0.00016438,2]
[399635997,1766577043701,-1365.60717564,0.00016438,2]
[399635999,1766577043710,-1365.60717564,0.00016438,2]
[399636001,1766577043720,-1365.60717564,0.00016438,2]
[399636003,1766577043730,-1365.60717564,0.00016438,2]
[399636005,1766577043739,-1365.60717564,0.00016438,2]
[399636007,1766577043750,-1365.60717564,0.00016438,2]
[399636009,1766577043760,-1365.60717564,0.00016438,2]
[399636011,1766577043769,-1365.60717564,0.00016438,2]
[399636013,1766577043779,-1365.60717564,0.00016438,2]
[399636015,1766577043788,-1365.60717564,0.00016438,2]
[399636017,1766577043799,-1365.60717564,0.00016438,2]
[399636019,1766577043810,-1365.60717564,0.00016438,2]
[399636021,1766577043820,-1365.60717564,0.00016438,2]
[399636023,1766577043831,-1365.60717564,0.00016438,2]
[399636025,1766577043841,-1365.60717564,0.00016438,2]
[399636027,1766577043851,-1365.60717564,0.00016438,2]
[399636029,1766577043861,-1365.60717564,0.00016438,2]
[399636031,1766577043871,-1365.60717564,0.00016438,2]
[399636034,1766577043881,-1365.60717564,0.00016438,2]
[399636036,1766577043892,-1365.60717564,0.00016438,2]
[399636038,1766577043902,-1365.60717564,0.00016438,2]
[399636040,1766577043912,-1365.60717564,0.00016438,2]
[399636042,1766577043923,-1365.60717564,0.00016438,2]
[399636044,1766577043937,-1365.60717564,0.00016438,2]
[399636046,1766577043947,-1365.60717564,0.00016438,2]
[399636048,1766577043956,-1365.60717564,0.00016438,2]
[399636050,1766577043966,-1365.60717564,0.00016438,2]
[399636052,1766577043976,-1365.60717564,0.00016438,2]
[399636054,1766577043986,-1365.60717564,0.00016438,2]
[399636056,1766577043996,-1365.60717564,0.00016438,2]
[399636058,1766577044006,-1351.95110388,0.00016438,2]
[399636060,1766577044017,-1351.95110388,0.00016438,2]
[399636062,1766577044027,-1351.95110388,0.00016438,2]
[399636064,1766577044037,-1351.95110388,0.00016438,2]
[399636066,1766577044047,-1351.95110388,0.00016438,2]
[399636068,1766577044057,-1351.95110388,0.00016438,2]
[399636070,1766577044067,-1351.95110388,0.00016438,2]
[399636072,1766577044077,-1351.95110388,0.00016438,2]
[399636074,1766577044087,-1351.95110388,0.00016438,2]
[399636076,1766577044097,-1351.95110388,0.00016438,2]
[399636078,1766577044108,-1351.95110388,0.00016438,2]
[399636080,1766577044119,-1351.95110388,0.00016438,2]
[399636082,1766577044129,-1351.95110388,0.00016438,2]
[399636084,1766577044139,-1351.95110388,0.00016438,2]
[399636086,1766577044149,-1351.95110388,0.00016438,2]
[399636089,1766577044159,-1351.95110388,0.00016438,2]
[399636091,1766577044170,-1351.95110388,0.00016438,2]
[399636093,1766577044180,-1351.95110388,0.00016438,2]
[399636095,1766577044189,-1351.95110388,0.00016438,2]
[399636096,1766577044199,-1351.95110382,0.00016438,2]
[399636098,1766577044209,-500.0,0.00016438,2]
[399636100,1766577044219,-14397.82,0.00016438,2]
[399636101,1766577044228,-3656.0,0.00016438,2]
[399636102,1766577044238,-801.24318658,0.00016438,2]
[399636103,1766577044248,-2991.0,0.00016456,2]
[399636104,1766577044258,-500.0,0.00016465,2]
[399636105,1766577044268,-505.03256826,0.00016465,2]
[399636106,1766577044279,-390.50248368,0.00016466,2]
[399636107,1766577044289,-2991.0,0.00016486,2]
[399636108,1766577044299,-2159.39,0.00016489,2]
[399636109,1766577044310,-500.0,0.00016493,2]
[399636110,1766577044320,-2991.0,0.00016501,2]
[399636111,1766577044331,-150.0,0.00016501,2]
[399636112,1766577044341,-150.0,0.00016501,2]
[399636113,1766577044352,-150.0,0.00016501,2]
[399636114,1766577044362,-150.0,0.00016501,2]
[399636115,1766577044372,-500.0,0.0001652,2]
[399636116,1766577044382,-150.0,0.00016533,2]
[399636117,1766577044392,-2991.0,0.0001654,2]
[399636118,1766577044402,-2991.0,0.00016546,2]
[399636119,1766577044412,-502.78081012,0.00016548,2]
[399636120,1766577044422,-24029.90221517,0.00016581,2]
[399636121,1766577044432,-1363.31060661,0.00016582,2]
[399636122,1766577044442,-500.0,0.00016588,2]
[399636123,1766577044452,-500.0,0.00016588,2]
[399636124,1766577044462,-2991.0,0.00016604,2]
[399636125,1766577044473,-150.0,0.00016609,2]
[399636126,1766577044495,-150.0,0.00016647,2]
[399636127,1766577044515,-2256.77151538,0.0001666,2]
[399636128,1766577044527,-500.0,0.00016699,2]
[399636129,1766577044537,-500.0,0.00016699,2]
[399636130,1766577044547,-500.0,0.00016699,2]
[399636131,1766577044559,-500.0,0.00016699,2]
[399636132,1766577044571,-500.0,0.00016699,2]
[399636133,1766577044582,-500.0,0.00016699,2]
[399636134,1766577044595,-500.0,0.00016699,2]
[399636135,1766577044606,-500.0,0.00016699,2]
[399636136,1766577044619,-500.0,0.00016699,2]
[399636137,1766577044631,-500.0,0.00016699,2]
[399636138,1766577044642,-500.0,0.00016699,2]
[399636139,1766577044654,-606.43749041,0.00016699,2]
[399636140,1766577044664,-1000.0,0.000167,2]
[399636141,1766577044675,-150.0,0.00016703,2]
[399636142,1766577044686,-10000.0,0.00016716,2]
[399636143,1766577044696,-642.94,0.00016718,2]
[399636144,1766577044706,-287.61899177,0.00016718,2]
[399636145,1766577044715,-543.0,0.00016718,2]
[399636146,1766577044726,-334.5472959,0.00016718,2]
[399636147,1766577044736,-500.0,0.00016719,2]
[399636148,1766577044747,-500.0,0.00016719,2]
[399636149,1766577044757,-500.0,0.00016719,2]
[399636150,1766577044767,-500.0,0.00016719,2]
[399636151,1766577044777,-500.0,0.00016719,2]
[399636152,1766577044789,-500.0,0.00016719,2]
[399636153,1766577044798,-500.0,0.00016719,2]
[399636154,1766577044808,-258.4625405,0.00016719,2]
[399636155,1766577044818,-500.0,0.00016719,2]
[399636156,1766577044828,-500.0,0.00016719,2]
[399636157,1766577044838,-500.0,0.00016719,2]
[399636158,1766577044848,-500.0,0.00016719,2]
[399636159,1766577044858,-500.0,0.00016719,2]
[399636160,1766577044869,-500.0,0.00016719,2]
[399636161,1766577044879,-514.26068371,0.00016719,2]
[399636162,1766577044891,-364.48,0.00016735,2]
[399636163,1766577044900,-366.16,0.00016743,2]
[399636164,1766577044910,-150.0,0.00016744,2]
[399636165,1766577044920,-150.0,0.00016744,2]
[399636166,1766577044930,-150.0,0.00016744,2]
[399636167,1766577044943,-150.0,0.00016744,2]
[399636168,1766577044953,-150.0,0.0001676,2]
[399636169,1766577044963,-2159.39,0.00016763,2]
[399636170,1766577044972,-2991.0,0.00016769,2]
[399636171,1766577044982,-2991.0,0.00016779,2]
[399636172,1766577044992,-150.0,0.00016798,2]
[399636173,1766577045002,-2991.0,0.000168,2]
[399636174,1766577045012,-226.5,0.00016813,2]
[399636175,1766577045022,-2000.0,0.00016816,2]
[399636176,1766577045032,-2000.0,0.00016816,2]
[399636177,1766577045042,-2000.0,0.00016816,2]
[399636178,1766577045051,-2000.0,0.00016816,2]
[399636179,1766577045060,-2000.0,0.00016816,2]
[399636180,1766577045070,-2000.0,0.00016816,2]
[399636181,1766577045080,-437.14852253,0.00016816,2]
[399636182,1766577045090,-630.28190868,0.00016816,2]
[399636183,1766577045100,-1073.58059589,0.00016816,2]
[399636184,1766577045110,-2000.0,0.00016816,2]
[399636185,1766577045120,-2000.0,0.00016816,2]
[399636186,1766577045130,-500.0,0.00016846,2]
[399636187,1766577045140,-500.0,0.00016846,2]
[399636188,1766577045149,-500.0,0.00016846,2]
[399636189,1766577045159,-500.0,0.00016846,2]
[399636190,1766577045169,-515.32903938,0.00016846,2]
[399636191,1766577045181,-500.0,0.00016846,2]
[399636192,1766577045191,-166.67,0.00016861,2]
[399636193,1766577045201,-200.0,0.00016863,2]
[399636194,1766577045210,-200.0,0.00016864,2]
[399636195,1766577045221,-150.0,0.00016873,2]
[399636196,1766577045230,-500.0,0.00016899,2]
[399636197,1766577045239,-390.50248368,0.000169,2]
[399636198,1766577045249,-422.4145837,0.000169,2]
[399636199,1766577045260,-24029.90221517,0.000169,2]
[399636200,1766577045269,-1000.0,0.000169,2]
[399636201,1766577045279,-465.4164627,0.000169,2]
[399636202,1766577045289,-151.0,0.000169,2]
[399636203,1766577045299,-556.04491804,0.000169,2]
[399636204,1766577045309,-151.0,0.000169,2]
[399636205,1766577045319,-151.0,0.000169,2]
[399636206,1766577045329,-151.0,0.000169,2]
[399636207,1766577045340,-4257.50015401,0.000169,2]
[399636208,1766577045349,-159.213427,0.000169,2]
[399636209,1766577045359,-189.581492,0.000169,2]
[399636210,1766577045370,-500.0,0.000169,2]
[399636211,1766577045707,-500.0,0.000169,2]
[399636212,1766577045718,-500.0,0.000169,2]
[399636213,1766577045727,-500.0,0.000169,2]
[399636214,1766577045738,-500.0,0.000169,2]
[399636215,1766577045747,-500.0,0.000169,2]
[399636216,1766577045757,-500.0,0.000169,2]
[399636217,1766577045767,-500.0,0.000169,2]
[399636218,1766577045782,-500.0,0.000169,2]
[399636219,1766577045793,-500.0,0.000169,2]
[399636220,1766577045803,-500.0,0.000169,2]
[399636221,1766577045814,-500.0,0.000169,2]
[399636222,1766577045824,-500.0,0.000169,2]
[399636223,1766577045835,-500.0,0.000169,2]
[399636224,1766577045845,-500.0,0.000169,2]
[399636225,1766577045856,-500.0,0.000169,2]
[399636226,1766577045867,-500.0,0.000169,2]
[399636227,1766577045878,-500.0,0.000169,2]
[399636228,1766577045888,-500.0,0.000169,2]
[399636229,1766577045898,-500.0,0.000169,2]
[399636230,1766577045908,-500.0,0.000169,2]
[399636231,1766577045919,-500.0,0.000169,2]
[399636232,1766577045929,-500.0,0.000169,2]
[399636233,1766577045939,-500.0,0.000169,2]
[399636234,1766577045949,-500.0,0.000169,2]
[399636235,1766577045959,-425.97674525,0.000169,2]
[399636236,1766577045970,-5379.0,0.000169,2]
[399636237,1766577045980,-203.7325707,0.00016925,2]
[399636238,1766577045990,-500.0,0.00016973,2]
[399636239,1766577046001,-150.0,0.00016973,2]
[399636240,1766577046012,-181.68141463,0.00016986,2]
[399636241,1766577046022,-167.10991065,0.00016986,2]
[399636242,1766577046031,-176.01870488,0.00016986,2]
[399636243,1766577046042,-257.33467835,0.00016986,2]
[399636244,1766577046052,-170.81056165,0.00016986,2]
[399636245,1766577046062,-150.0,0.00016986,2]
[399636246,1766577046072,-173.4351173,0.00016986,2]
[399636247,1766577046083,-154.0769181,0.00016986,2]
[399636248,1766577046092,-156.0209703,0.00016986,2]
[399636249,1766577046102,-286.50926641,0.00016986,2]
[399636250,1766577046113,-174.4498365,0.00016986,2]
[399636251,1766577046124,-52378.98,0.00016986,2]
[399636252,1766577046140,-1191.16039457,0.0001699,2]
[399636253,1766577046151,-1191.16039457,0.0001699,2]
[399636254,1766577046162,-268.86752652,0.00016994,2]
[399636255,1766577046172,-452.87068526,0.00016996,2]
[399636256,1766577046183,-500.0,0.00016996,2]
[399636257,1766577046194,-349.26999972,0.00016996,2]
[399636258,1766577046205,-13130.32877765,0.00016997,2]
[399636259,1766577046216,-8196.63343624,0.00016997,4]
[399636260,1766577046228,-333225.4313302,0.00016997,2]
[399636261,1766577046239,-9874.0392849,0.00016997,2]
[399636262,1766577046251,-151.0,0.00016997,2]
[399636263,1766577046262,-151.0,0.00016997,2]
[399636264,1766577046273,-151.0,0.00016997,2]
[399636265,1766577046284,-151.0,0.00016997,2]
[399636266,1766577046295,-151.0,0.00016997,2]
[399636267,1766577046306,-151.0,0.00016997,2]
[399636268,1766577046317,-151.0,0.00016997,2]
[399636269,1766577046327,-151.0,0.00016997,2]
[399636270,1766577046338,-209.748706,0.00016997,2]
[399636271,1766577046349,-151.0,0.00016997,2]
[399636272,1766577046360,-688.914365,0.00016997,2]
[399636273,1766577046371,-688.914365,0.00016997,2]
[399636274,1766577046382,-688.914365,0.00016997,2]
[399636275,1766577046393,-688.914365,0.00016997,2]
[399636276,1766577046403,-151.0,0.00016997,2]
[399636277,1766577046415,-151.0,0.00016997,2]
[399636278,1766577046425,-151.0,0.00016997,2]
[399636279,1766577046436,-151.0,0.00016997,2]
[399636280,1766577046447,-151.0,0.00016997,2]
[399636281,1766577046457,-197.442996,0.00016997,2]
[399636282,1766577046468,-197.442996,0.00016997,2]